bitfinex-derivatives/quotes_SOLF0:USTF0_20251002
["timestamp","ask_amount","ask_price","bid_price","bid_amount"]
[1759411283520,69.2997,226.03,225.88,7.43]
[1759411284025,7.39,226.03,225.88,7.43]
[1759411284432,7.39,226.03,225.91,3.9819]
[1759411284621,7.39,226.03,225.89,61.9467]
[1759411284817,7.39,226.03,225.92,7.14]
[1759411285028,7.39,226.03,225.93,3.9815]
[1759411285921,7.39,226.03,225.92,7.14]
[1759411286326,3.98,226.02,225.92,7.14]
[1759411286723,7.39,226.03,225.92,11.1217]
[1759411287025,7.39,226.03,225.92,7.14]
[1759411287224,7.62,226.1,225.94,7.14]
[1759411287821,3.9791,226.07,225.95,3.9811]
[1759411288526,7.62,226.1,225.97,3.9807]
[1759411289218,3.9789,226.08,225.97,3.9807]
[1759411289421,7.62,226.09,225.94,11.1213]
[1759411289728,61.8909,226.1,225.94,11.1213]
[1759411289729,7.62,226.07,225.94,7.14]
[1759411289930,7.62,226.07,225.95,3.9812]
[1759411290123,7.62,226.07,225.94,7.14]
[1759411290324,3.9798,226.03,225.94,11.1214]
[1759411290923,118.2594,226.06,225.94,11.1214]
[1759411291129,114.28,226.06,225.94,11.1214]
[1759411291330,114.28,226.06,225.96,3.981]
[1759411291530,125.8792,226.07,225.96,3.981]
[1759411291730,7.62,226.07,225.96,3.981]
[1759411291927,121.88,226.07,225.96,3.981]
[1759411292128,7.62,226.07,225.98,3.9806]
[1759411292833,7.62,226.07,225.94,69.0719]
[1759411292834,7.62,226.07,225.95,3.981]
[1759411293439,3.9787,226.1,225.96,69.0677]
[1759411294031,3.9787,226.1,225.96,61.9277]
[1759411294232,7.62,226.12,225.99,7.14]
[1759411295630,3.9784,226.11,225.99,7.14]
[1759411296540,7.62,226.12,226.03,3.9798]
[1759411297038,326.1779,226.15,226.05,3.9794]
[1759411298530,326.1779,226.15,226.02,11.1198]
[1759411298531,7.62,226.13,226.02,11.1198]
[1759411299432,7.62,226.13,226.03,3.9796]
[1759411300239,121.64,226.13,226.03,3.9796]
[1759411300436,3.9782,226.12,226.03,3.9796]
[1759411300636,3.9782,226.12,226.02,7.14]
[1759411301037,121.64,226.13,226.03,3.9796]
[1759411301239,121.64,226.13,226.02,7.14]
[1759411301439,7.62,226.13,226.02,7.14]
[1759411301943,7.62,226.13,226.05,3.9793]
[1759411303039,11.5981,226.13,226.02,7.14]
[1759411303346,61.887,226.11,225.96,7.14]
[1759411303544,3.9791,226.07,225.96,7.14]
[1759411303845,99.04,226.08,225.96,7.14]
[1759411304235,7.62,226.1,226.03,3.9798]
[1759411304440,7.62,226.1,226.01,7.14]
[1759411305041,7.62,226.1,226.03,3.9797]
[1759411306846,7.62,226.1,226.01,11.1201]
[1759411307848,7.62,226.1,225.98,3.9806]
[1759411308048,7.62,226.1,225.96,7.14]
[1759411308349,7.62,226.03,225.9,7.14]
[1759411308738,7.62,226.03,225.92,7.14]
[1759411310442,7.62,226.03,225.97,3.9807]
[1759411311344,66.75218538,226.19,225.91,61.9405]
[1759411311345,113.64,226.07,225.99,3.9804]
[1759411312645,7.62,226.06,225.99,3.9804]
[1759411312844,7.62,226.06,225.96,11.121]
[1759411313753,7.62,226.06,225.97,3.9807]
[1759411314055,7.62,226.06,225.96,7.14]
[1759411314647,7.62,226.06,225.95,61.9288]
[1759411314648,113.54,226.1,226.0,7.47]
[1759411315350,7.4,226.11,226.0,7.47]
[1759411315654,120.92,226.11,226.03,3.9796]
[1759411316056,7.4,226.11,226.05,3.9794]
[1759411316248,7.4,226.11,226.0,7.47]
[1759411316450,7.4,226.11,225.95,61.9288]
[1759411316451,7.4,226.09,225.94,7.47]
[1759411317451,3.9791,226.07,226.0,3.9803]
[1759411319259,117.4191,226.07,226.0,3.9803]
[1759411319656,3.9791,226.07,226.0,3.9803]
[1759411319858,117.3591,226.07,226.0,3.9803]
[1759411320059,117.3391,226.07,226.0,3.9803]
[1759411320457,113.36,226.07,226.0,3.9803]
[1759411320655,113.36,226.07,226.01,3.98]
[1759411320958,113.32,226.08,226.01,3.98]
[1759411321155,7.4,226.09,226.04,3.9795]
[1759411321855,7.4,226.09,225.99,61.919]
[1759411321856,7.4,226.14,226.01,61.9137]
[1759411322056,120.7,226.14,226.02,7.47]
[1759411322657,3.9782,226.13,226.04,3.9796]
[1759411322860,120.7,226.14,226.02,7.47]
[1759411323455,124.6779,226.14,226.06,3.9791]
[1759411323657,120.7,226.14,226.03,61.9086]
[1759411323861,120.7,226.14,226.04,7.47]
[1759411324074,7.4,226.14,226.04,7.47]
[1759411324558,7.4,226.14,226.08,3.9788]
[1759411324758,7.4,226.14,226.04,7.47]
[1759411325669,3.9776,226.16,226.04,7.47]
[1759411326357,3.9776,226.16,226.09,3.9786]
[1759411326758,43.54,226.17,226.09,3.9786]
[1759411327263,43.54,226.17,226.1,3.9784]
[1759411327466,7.4,226.18,226.07,7.47]
[1759411328163,7.4,226.19,226.02,7.47]
[1759411328363,7.4,226.19,226.03,61.9083]
[1759411328556,7.4,226.19,226.04,7.47]
[1759411329664,7.4,226.15,226.04,7.47]
[1759411330663,11.3778,226.15,226.06,3.9792]
[1759411331261,3.978,226.13,226.06,3.9792]
[1759411331460,7.4,226.15,226.06,3.9792]
[1759411331860,7.4,226.15,226.07,3.979]
[1759411333167,11.3778,226.15,226.07,3.979]
[1759411333366,7.4,226.15,226.04,7.47]
[1759411333860,7.4,226.15,226.08,3.9788]
[1759411335668,7.4,226.15,226.09,3.9786]
[1759411336168,3.977,226.19,226.07,7.47]
[1759411336969,7.4,226.2,226.09,3.9787]
[1759411337559,3.9774,226.17,226.09,3.9787]
[1759411338264,11.3774,226.17,226.09,3.9787]
[1759411338466,7.4,226.17,226.11,3.9783]
[1759411338767,3.977,226.19,226.11,3.9783]
[1759411339963,11.3773,226.18,226.11,3.9783]
[1759411340562,7.4,226.18,226.11,3.9783]
[1759411341064,11.3773,226.18,226.11,3.9783]
[1759411342358,3.9774,226.17,226.1,7.47]
[1759411342569,3.9774,226.17,226.09,3.9787]
[1759411345466,61.8605,226.21,226.07,3.979]
[1759411345670,7.67,226.15,226.07,3.979]
[1759411346064,3.978,226.14,226.06,7.47]
[1759411346265,3.978,226.14,225.88,522.13249907]
[1759411346266,7.67,226.13,226.02,7.7]
[1759411346467,7.67,226.11,226.02,7.7]
[1759411346673,7.67,226.11,226.02,9.42048848]
[1759411346874,11.6485,226.11,226.02,9.42048848]
[1759411347171,7.67,226.11,226.06,1.72048848]
[1759411347378,7.67,226.11,226.06,9.42048848]
[1759411347574,7.67,226.12,226.06,1.72048848]
[1759411348180,7.67,226.12,226.05,3.9793]
[1759411349484,11.6483,226.12,226.05,3.9793]
[1759411349675,7.67,226.12,226.02,11.6798]
[1759411351276,3.9786,226.11,226.02,11.6798]
[1759411351478,3.9786,226.11,226.03,3.9797]
[1759411355484,7.67,226.12,226.04,3.9795]
[1759411356778,7.67,226.12,226.02,7.7]
[1759411357380,7.67,226.16,226.07,7.7]
[1759411357980,11.6476,226.16,226.08,3.9788]
[1759411358188,7.67,226.16,226.07,7.7]
[1759411359285,11.6476,226.16,226.07,7.7]
[1759411359579,7.67,226.16,226.07,7.7]
[1759411359886,7.67,226.16,226.09,3.9786]
[1759411360189,7.67,226.16,226.07,7.7]
[1759411360488,3.9778,226.15,226.07,11.6791]
[1759411360785,7.67,226.16,226.07,7.7]
[1759411361083,11.6482,226.13,226.05,3.9794]
[1759411361287,11.6482,226.13,226.03,7.7]
[1759411362588,11.6482,226.13,226.06,3.9791]
[1759411364091,7.67,226.13,226.06,3.9791]
[1759411364597,7.67,226.13,226.07,3.979]
[1759411365193,7.67,226.13,226.08,3.9788]
[1759411365596,7.67,226.13,226.09,7.7]
[1759411366587,7.67,226.14,226.08,3.9788]
[1759411369400,7.67,226.14,226.09,11.6786]
[1759411369697,7.67,226.19,226.09,11.6786]
[1759411369896,7.67,226.16,226.09,11.6786]
[1759411370598,11.6476,226.16,226.09,11.6786]
[1759411370808,11.6476,226.16,226.07,3.979]
[1759411371104,7.67,226.16,226.07,3.979]
[1759411372605,3.9779,226.14,226.07,3.979]
[1759411373803,7.67,226.16,226.08,3.9788]
[1759411375607,3.9778,226.15,226.08,3.9788]
[1759411375809,7.67,226.16,226.06,3.9792]
[1759411376012,7.67,226.16,226.05,9.4202476]
[1759411376200,7.67,226.16,226.08,1.7202476]
[1759411376398,7.67,226.16,226.09,7.82]
[1759411377710,11.6476,226.16,226.09,7.82]
[1759411378203,3.9778,226.15,226.09,7.82]
[1759411378407,7.67,226.16,226.07,1.7202476]
[1759411379106,1.7202476,226.15,226.05,7.82]
[1759411379306,7.3,226.11,226.03,3.9797]
[1759411379707,7.3,226.11,226.02,1.7202476]
[1759411379906,7.3,226.11,226.03,7.82]
[1759411380409,7.3,226.11,226.03,9.5402476]
[1759411380612,11.2785,226.11,226.04,3.9795]
[1759411382710,3.9787,226.1,226.03,9.5402476]
[1759411382908,9.0202476,226.11,226.03,7.82]
[1759411383108,7.3,226.1,226.01,1.7202476]
[1759411383306,7.3,226.08,225.99,1.7202476]
[1759411383509,7.3,226.08,225.97,7.82]
[1759411383709,7.3,226.08,226.0,7.82]
[1759411383913,9.0202476,226.08,226.0,7.82]
[1759411384715,12.9993476,226.08,226.0,11.8003]
[1759411384916,7.3,226.08,226.01,1.7202476]
[1759411385110,7.3,226.08,226.03,1.7202476]
[1759411385310,74.1185476,226.12,226.03,9.5402476]
[1759411385505,70.1402476,226.12,226.03,9.5402476]
[1759411385914,9.0202476,226.12,226.03,9.5402476]
[1759411386415,9.0202476,226.12,226.03,13.5199476]
[1759411387119,12.9985476,226.12,226.04,3.9795]
[1759411387413,9.0202476,226.16,226.06,9.5402476]
[1759411388518,9.0202476,226.16,226.07,1.7202476]
[1759411388717,12.9978476,226.16,226.07,1.7202476]
[1759411389217,11.2776,226.16,226.07,1.7202476]
[1759411389607,11.2776,226.16,226.07,5.6991476]
[1759411390021,11.2776,226.16,226.07,1.7202476]
[1759411391021,7.3,226.14,226.05,1.7202476]
[1759411391411,7.3,226.14,226.05,9.5402476]
[1759411391609,9.0202476,226.14,226.05,9.5402476]
[1759411391809,1.7202476,226.12,226.05,7.82]
[1759411392017,7.3,226.11,226.03,1.7202476]
[1759411392316,3.9793,226.06,225.98,3.9806]
[1759411392516,7.3,226.05,225.98,5.7008476]
[1759411392815,7.3,226.05,225.98,1.7202476]
[1759411393611,7.3,226.05,225.96,9.5402476]
[1759411393812,7.3,226.03,225.96,9.5402476]
[1759411394217,7.3,226.07,225.99,7.82]
[1759411394414,7.3,226.07,225.99,10.50965672]
[1759411395412,100.2784,226.11,226.02,3.98]
[1759411395923,11.2784,226.11,226.02,3.98]
[1759411396319,11.2784,226.11,226.03,3.9796]
[1759411396519,7.3,226.11,226.03,3.9796]
[1759411396821,7.3,226.11,226.03,2.68965672]
[1759411397618,7.3,226.11,226.02,10.50965672]
[1759411398720,11.2784,226.11,226.03,3.9798]
[1759411399018,11.2784,226.11,226.02,7.82]
[1759411399226,11.2784,226.11,226.0,2.68965672]
[1759411399520,11.2784,226.11,226.02,3.9798]
[1759411400625,7.3,226.11,226.03,3.9796]
[1759411402828,11.2785,226.11,226.01,7.82]
[1759411403028,7.3,226.11,226.01,7.82]
[1759411403920,112.32,226.14,226.01,7.82]
[1759411403921,11.569,226.08,226.01,7.82]
[1759411404129,11.569,226.08,225.97,3.9807]
[1759411404130,11.569,226.08,225.97,13.98035672]
[1759411404329,11.569,226.08,225.97,9.99965672]
[1759411404627,7.59,226.07,225.98,3.9805]
[1759411405221,7.59,226.07,225.99,3.9803]
[1759411405529,7.59,226.07,225.98,7.31]
[1759411406029,7.59,226.07,226.01,3.9801]
[1759411408533,7.59,226.07,225.99,3.9805]
[1759411410535,7.59,226.07,225.98,7.31]
[1759411410835,7.59,226.07,225.94,7.31]
[1759411411625,7.59,226.03,225.95,3.9812]
[1759411413234,11.57,226.03,225.94,7.31]
[1759411414131,3.9802,226.01,225.94,7.31]
[1759411414530,7.59,226.0,225.9,13.98155672]
[1759411414830,7.59,226.0,225.9,9.99965672]
[1759411415030,7.59,226.0,225.93,11.2916]
[1759411417032,7.59,226.0,225.93,7.31]
[1759411421129,7.59,226.09,225.96,7.31]
[1759411421338,7.59,226.09,226.01,2.68965672]
[1759411421535,7.59,226.09,226.02,7.31]
[1759411422336,7.59,226.14,226.02,7.31]
[1759411423042,7.59,226.12,226.02,11.29]
[1759411424731,2.68965672,226.14,226.02,11.29]
[1759411424933,7.59,226.13,226.02,7.31]
[1759411425241,7.59,226.13,226.0,3.9803]
[1759411425439,7.59,226.13,226.01,7.31]
[1759411426540,11.5682,226.13,226.02,3.9798]
[1759411427135,3.9784,226.12,226.02,3.9798]
[1759411427336,7.59,226.11,226.01,7.31]
[1759411428137,7.59,226.11,226.02,3.98]
[1759411428944,7.59,226.11,226.04,11.2896]
[1759411430241,7.59,226.11,226.04,7.31]
[1759411433047,7.59,226.11,226.04,11.2895]
[1759411435040,7.59,226.11,226.05,4.2]
[1759411437445,11.5685,226.11,226.05,4.2]
[1759411437641,114.86965672,226.14,226.05,4.2]
[1759411437642,112.18,226.14,226.05,4.2]
[1759411437847,7.28,226.15,226.06,7.61]
[1759411438052,7.28,226.2,226.08,7.61]
[1759411438349,119.4,226.2,226.08,7.61]
[1759411438750,119.4,226.2,226.13,3.978]
[1759411439546,119.4,226.2,226.11,11.5883]
[1759411439941,7.28,226.19,226.11,7.61]
[1759411440344,11.2571,226.19,226.12,5.23]
[1759411440550,7.28,226.19,226.12,5.23]
[1759411442054,7.28,226.19,226.12,9.2082]
[1759411442254,7.28,226.19,226.12,5.23]
[1759411444156,2.68965672,226.18,226.12,5.23]
[1759411444356,7.28,226.17,226.12,5.23]
[1759411444556,2.68965672,226.18,226.12,5.23]
[1759411444755,7.28,226.17,226.12,5.23]
[1759411445254,2.68965672,226.18,226.12,5.23]
[1759411445453,7.28,226.17,226.12,5.23]
[1759411445655,3.9779,226.15,226.12,5.23]
[1759411445856,7.28,226.13,226.12,5.23]
[1759411447752,119.32,226.13,226.12,5.23]
[1759411449346,3.9773,226.18,226.12,5.23]
[1759411449554,119.3,226.17,226.13,7.61]
[1759411450451,7.28,226.22,226.13,7.61]
[1759411450650,112.02,226.21,226.13,7.61]
[1759411452651,112.02,226.21,226.14,3.9778]
[1759411453457,11.2557,226.27,226.16,7.61]
[1759411453655,7.28,226.25,226.16,7.61]
[1759411454656,24.35276766,226.25,226.16,7.61]
[1759411455360,111.98,226.24,226.16,7.61]
[1759411455553,7.28,226.22,226.12,5.23]
[1759411456253,1.71946598,226.2,226.12,5.23]
[1759411456449,111.96,226.19,226.12,5.23]
[1759411456654,1.71946598,226.18,226.12,5.23]
[1759411457054,5.69666598,226.18,226.12,5.23]
[1759411457550,7.28,226.15,226.12,5.23]
[1759411457755,7.28,226.13,226.12,5.23]
[1759411461661,119.22,226.13,226.12,5.23]
[1759411462061,120.93946598,226.13,226.12,5.23]
[1759411462958,8.99946598,226.13,226.12,5.23]
[1759411463162,120.93946598,226.13,226.12,5.23]
[1759411464962,120.91946598,226.13,226.12,5.23]
[1759411465263,119.2,226.13,226.12,5.23]
[1759411465466,120.91946598,226.13,226.12,5.23]
[1759411466159,8.99946598,226.13,226.12,5.23]
[1759411466364,7.28,226.13,226.12,5.23]
[1759411466560,119.18,226.13,226.12,5.23]
[1759411466765,7.28,226.13,226.12,5.23]
[1759411466956,119.18,226.13,226.12,5.23]
[1759411467555,7.28,226.13,226.12,5.23]
[1759411467961,120.89946598,226.13,226.12,5.23]
[1759411468162,119.18,226.13,226.12,5.23]
[1759411468358,120.89946598,226.13,226.12,5.23]
[1759411468564,7.32,226.16,226.12,5.23]
[1759411468767,111.9,226.13,226.12,5.23]
[1759411470668,119.22,226.13,226.12,5.23]
[1759411471659,111.9,226.13,226.12,5.23]
[1759411472475,9.03946598,226.17,226.12,5.23]
[1759411472675,111.86,226.16,226.12,5.23]
[1759411472874,7.32,226.15,226.12,5.23]
[1759411474076,9.03946598,226.17,226.12,13.04]
[1759411474276,111.86,226.16,226.13,7.81]
[1759411474770,119.18,226.16,226.12,5.23]
[1759411476275,7.32,226.15,226.12,5.23]
[1759411476478,111.86,226.16,226.12,5.23]
[1759411477073,7.32,226.15,226.12,5.23]
[1759411477378,111.86,226.16,226.12,5.23]
[1759411477577,115.8377,226.16,226.12,5.23]
[1759411477976,7.32,226.15,226.12,5.23]
[1759411478174,9.03946598,226.15,226.12,5.23]
[1759411478375,7.32,226.13,226.12,5.23]
[1759411478576,9.03946598,226.13,226.12,5.23]
[1759411478882,7.32,226.13,226.12,5.23]
[1759411479081,119.14,226.13,226.12,5.23]
[1759411483081,9.03946598,226.13,226.1,4.19]
[1759411483388,9.03946598,226.11,226.1,3.98507153]
[1759411484587,13.01786598,226.11,226.1,3.98507153]
[1759411485478,124.79786598,226.11,226.1,3.98507153]
[1759411486281,3.9789,226.08,226.07,6.31]
[1759411486485,7.32,226.07,225.98,7.81]
[1759411486688,9.03946598,226.05,225.98,7.81]
[1759411486890,111.76,226.04,225.98,7.81]
[1759411487484,115.7397,226.04,225.98,7.81]
[1759411487690,1.71946598,226.03,225.99,6.77]
[1759411488088,7.32,226.02,225.99,6.77]
[1759411488293,119.08,226.01,225.99,6.77]
[1759411488494,111.76,226.01,225.99,6.77]
[1759411490394,119.08,226.01,225.99,6.77]
[1759411490789,111.76,226.01,225.99,6.77]
[1759411491296,119.08,226.01,225.99,6.77]
[1759411491995,7.32,226.0,225.99,6.77]
[1759411492798,7.32,226.0,225.91,7.81]
[1759411493091,7.32,225.97,225.91,7.81]
[1759411493297,7.32,225.95,225.91,7.81]
[1759411493499,119.06,225.96,225.88,1.71946598]
[1759411494590,119.06,225.96,225.87,1.71946598]
[1759411494790,119.06,225.96,225.86,7.81]
[1759411494993,7.72,225.94,225.86,7.81]
[1759411495394,7.72,225.94,225.84,1.71946598]
[1759411495597,7.72,225.92,225.82,7.45]
[1759411495788,7.72,225.9,225.82,9.16946598]
[1759411496195,7.72,225.9,225.82,7.45]
[1759411496400,7.72,225.9,225.77,7.45]
[1759411496401,9.43946598,225.9,225.77,7.45]
[1759411496698,9.43946598,225.9,225.79,1.71946598]
[1759411497000,111.74,225.89,225.79,9.16946598]
[1759411497793,113.45946598,225.89,225.75,11.4346]
[1759411498098,7.72,225.88,225.79,1.71946598]
[1759411498494,7.72,225.88,225.78,1.71946598]
[1759411498700,111.74,225.87,225.81,1.71946598]
[1759411500892,7.72,225.86,225.78,1.71946598]
[1759411501093,7.72,225.86,225.74,7.45]
[1759411501296,1.71946598,225.83,225.67,19.37712453]
[1759411501498,7.72,225.79,225.68,7.45]
[1759411501690,7.72,225.79,225.7,1.71946598]
[1759411502399,7.72,225.79,225.68,7.45]
[1759411502400,1.71946598,225.78,225.68,7.45]
[1759411502593,111.74,225.77,225.69,1.71946598]
[1759411503090,111.74,225.77,225.7,3.9856]
[1759411503699,111.74,225.77,225.69,1.71946598]
[1759411503903,9.43946598,225.76,225.68,7.45]
[1759411504199,9.43946598,225.76,225.56,13.59797214]
[1759411504505,7.72,225.76,225.66,1.71946598]
[1759411504906,7.72,225.76,225.7,1.71946598]
[1759411505095,7.72,225.74,225.69,1.71946598]
[1759411505404,119.46,225.75,225.69,1.71946598]
[1759411506304,119.46,225.75,225.68,1.71946598]
[1759411507519,3.9858,225.69,225.55,11.4382]
[1759411507700,7.72,225.67,225.59,1.71946598]
[1759411508000,22.42,225.66,225.59,1.71946598]
[1759411508205,7.72,225.67,225.59,1.71946598]
[1759411508404,72.82,225.65,225.59,1.71946598]
[1759411508805,72.82,225.65,225.58,9.16946598]
[1759411509203,72.82,225.65,225.58,7.45]
[1759411509204,111.74,225.65,225.58,7.45]
[1759411509408,111.74,225.65,225.59,1.71946598]
[1759411509800,7.72,225.67,225.62,1.71946598]
[1759411510104,111.74,225.67,225.62,9.16946598]
[1759411510607,111.76,225.67,225.62,9.16946598]
[1759411510804,7.72,225.66,225.62,1.71946598]
[1759411513113,7.72,225.73,225.65,1.71946598]
[1759411513311,111.76,225.72,225.65,1.71946598]
[1759411513507,7.72,225.73,225.65,1.71946598]
[1759411513707,111.76,225.72,225.65,1.71946598]
[1759411513909,7.72,225.73,225.65,1.71946598]
[1759411514110,111.76,225.72,225.65,1.71946598]
[1759411515310,7.72,225.71,225.65,1.71946598]
[1759411515908,7.72,225.69,225.65,1.71946598]
[1759411516109,111.78,225.7,225.65,1.71946598]
[1759411516310,7.72,225.69,225.65,1.71946598]
[1759411516604,111.78,225.7,225.65,1.71946598]
[1759411517007,330.02,225.74,225.68,1.71946598]
[1759411517211,119.48,225.73,225.7,1.71946598]
[1759411517415,434.06,225.74,225.7,9.16946598]
[1759411517716,434.06,225.74,225.68,1.71946598]
[1759411518116,434.06,225.74,225.66,1.71946598]
[1759411518117,441.78,225.74,225.66,1.71946598]
[1759411518317,441.78,225.74,225.63,10.14761606]
[1759411518910,441.78,225.74,225.66,2.69761606]
[1759411519112,441.78,225.74,225.66,10.14761606]
[1759411519316,2.69761606,225.81,225.66,10.14761606]
[1759411519317,7.72,225.8,225.69,2.69761606]
[1759411519519,73.48,225.79,225.7,7.45]
[1759411519715,73.48,225.79,225.72,2.69761606]
[1759411520606,73.48,225.79,225.72,6.68281606]
[1759411521318,73.48,225.79,225.75,2.69761606]
[1759411521518,111.74,225.82,225.75,2.69761606]
[1759411522618,7.72,225.84,225.75,2.69761606]
[1759411522816,111.74,225.83,225.75,6.68231606]
[1759411523117,7.72,225.84,225.75,6.68231606]
[1759411523315,7.72,225.84,225.77,3.9843]
[1759411523510,7.72,225.84,225.78,2.69761606]
[1759411523816,111.74,225.86,225.81,2.69761606]
[1759411524116,111.74,225.86,225.81,10.13761606]
[1759411524321,111.74,225.86,225.82,7.44]
[1759411524517,7.39,225.9,225.84,2.69761606]
[1759411526011,111.72,225.91,225.87,7.44]
[1759411526219,7.39,225.95,225.87,10.13761606]
[1759411527409,7.39,225.95,225.87,7.44]
[1759411527610,7.39,225.95,225.87,10.13761606]
[1759411528017,7.39,225.95,225.88,3.9824]
[1759411530421,7.39,225.95,225.87,10.13761606]
[1759411531815,7.39,225.95,225.87,7.44]
[1759411532017,7.39,225.95,225.81,7.44]
[1759411532422,7.39,225.89,225.78,3.984]
[1759411532724,119.03,225.89,225.78,3.984]
[1759411532923,119.03,225.89,225.77,10.13761606]
[1759411533217,3.9825,225.88,225.77,14.12191606]
[1759411533811,7.39,225.87,225.77,14.12191606]
[1759411534023,7.39,225.87,225.78,3.984]
[1759411535314,11.3726,225.87,225.78,3.984]
[1759411535515,11.3726,225.87,225.75,3.9846]
[1759411535919,11.3726,225.87,225.76,3.9844]
[1759411536418,7.39,225.88,225.75,11.4246]
[1759411536616,7.39,225.88,225.75,7.44]
[1759411536919,7.39,225.85,225.75,7.44]
[1759411539017,7.39,225.85,225.75,11.4247]
[1759411539222,7.39,225.85,225.77,2.69761606]
[1759411539417,7.39,225.85,225.78,7.44]
[1759411540725,7.39,225.85,225.8,11.4238]
[1759411542426,7.39,225.87,225.77,3.9842]
[1759411544015,7.39,225.87,225.75,3.9847]
[1759411544016,2.69761606,225.85,225.75,3.9847]
[1759411544221,7.39,225.84,225.75,3.9847]
[1759411544520,7.39,225.84,225.76,7.44]
[1759411545227,7.39,225.84,225.76,11.4245]
[1759411545925,7.39,225.84,225.78,3.9842]
[1759411546326,7.39,225.84,225.76,7.44]
[1759411546524,111.58,225.87,225.76,7.44]
[1759411546722,111.58,225.87,225.79,11.4238]
[1759411546930,7.39,225.88,225.79,7.44]
[1759411547427,7.39,225.88,225.81,7.44]
[1759411547623,7.39,225.93,225.81,7.44]
[1759411548220,7.39,225.93,225.86,3.9826]
[1759411549730,7.39,225.93,225.84,11.4231]
[1759411551225,7.39,225.93,225.8,7.44]
[1759411552230,7.39,225.93,225.75,7.44]
[1759411553727,7.39,225.88,225.78,3.9841]
[1759411557329,7.39,225.88,225.79,3.9839]
[1759411557921,7.39,225.88,225.8,3.9837]
[1759411562739,7.39,225.88,225.78,7.84]
[1759411562943,7.88,225.91,225.72,7.84]
[1759411564138,7.88,225.84,225.75,3.9845]
[1759411565342,7.88,225.84,225.76,3.9844]
[1759411566445,7.88,225.84,225.75,7.84]
[1759411566446,7.88,225.84,225.77,3.9842]
[1759411566839,7.88,225.84,225.76,7.84]
[1759411568046,7.88,225.88,225.76,7.84]
[1759411568251,7.88,225.86,225.79,3.9839]
[1759411568946,7.88,225.86,225.79,7.84]
[1759411570050,7.88,225.85,225.71,7.84]
[1759411570345,7.88,225.85,225.72,61.9919]
[1759411570545,7.88,225.85,225.77,11.8242]
[1759411570945,7.88,225.85,225.79,3.9839]
[1759411571347,7.88,225.85,225.77,7.84]
[1759411572547,7.88,225.85,225.7,7.84]
[1759411572742,69.8381,225.85,225.7,7.84]
[1759411572941,3.9839,225.8,225.7,11.8254]
[1759411573339,7.88,225.81,225.7,7.84]
[1759411573849,2.69477049,225.86,225.7,7.84]